[Event "*** Titled Tuesday Blitz"]
[Site "Chess.com"]
[Date "2019.12.03"]
[Round "3"]
[White "j2806"]
[Black "Kosche007"]
[Result "0-1"]
[WhiteElo "1915"]
[BlackElo "2319"]
[TimeControl "180+2"]
[EndTime "13:37:12 PST"]
[Termination "Kosche007 won on time"]

1. e4 {[%clk 0:02:59.8]} 1... c6 {[%clk 0:02:59]} 2. d4 {[%clk 0:03:00.1]} 2...
d5 {[%clk 0:03:00.5]} 3. exd5 {[%clk 0:03:00.3]} 3... cxd5 {[%clk 0:03:01.7]} 4.
Bd3 {[%clk 0:03:01.1]} 4... Nc6 {[%clk 0:03:00.8]} 5. c3 {[%clk 0:03:02.1]} 5...
Nf6 {[%clk 0:03:00.9]} 6. h3 {[%clk 0:03:03.1]} 6... g6 {[%clk 0:03:00.5]} 7.
Nf3 {[%clk 0:03:02.4]} 7... Bg7 {[%clk 0:03:01.7]} 8. Qe2 {[%clk 0:03:02.5]}
8... O-O {[%clk 0:03:02.3]} 9. O-O {[%clk 0:03:03]} 9... Bf5 {[%clk 0:03:01.8]}
10. Bxf5 {[%clk 0:02:48.8]} 10... gxf5 {[%clk 0:03:03.7]} 11. Bf4 {[%clk
0:02:39]} 11... Ne4 {[%clk 0:03:02.6]} 12. Nbd2 {[%clk 0:02:34.6]} 12... e6
{[%clk 0:02:55.5]} 13. Ne5 {[%clk 0:02:24.1]} 13... Nxe5 {[%clk 0:02:52]} 14.
Bxe5 {[%clk 0:02:24.5]} 14... Bxe5 {[%clk 0:02:48.6]} 15. dxe5 {[%clk
0:02:25.3]} 15... Qg5 {[%clk 0:02:46.3]} 16. Nxe4 {[%clk 0:02:03.6]} 16... fxe4
{[%clk 0:02:38.8]} 17. f4 {[%clk 0:01:59.4]} 17... Qg7 {[%clk 0:02:30.9]} 18.
Rad1 {[%clk 0:01:49.6]} 18... Kh8 {[%clk 0:02:31.5]} 19. c4 {[%clk 0:01:41.5]}
19... Rad8 {[%clk 0:02:25.5]} 20. cxd5 {[%clk 0:01:30.7]} 20... exd5 {[%clk
0:02:26.5]} 21. Rd4 {[%clk 0:01:30]} 21... f6 {[%clk 0:02:22.1]} 22. e6 {[%clk
0:01:16.6]} 22... f5 {[%clk 0:02:18.7]} 23. Rfd1 {[%clk 0:01:15.3]} 23... Qf6
{[%clk 0:02:16.6]} 24. Rxd5 {[%clk 0:01:11.4]} 24... Rxd5 {[%clk 0:02:17.7]} 25.
Rxd5 {[%clk 0:01:12]} 25... Qxe6 {[%clk 0:02:19.3]} 26. Qb5 {[%clk 0:00:52.1]}
26... Rf7 {[%clk 0:01:46.9]} 27. Rd8+ {[%clk 0:00:36.3]} 27... Kg7 {[%clk
0:01:46]} 28. Qe5+ {[%clk 0:00:34.5]} 28... Qxe5 {[%clk 0:01:45.8]} 29. fxe5
{[%clk 0:00:35.3]} 29... Re7 {[%clk 0:01:45.3]} 30. Rd5 {[%clk 0:00:31.6]} 30...
f4 {[%clk 0:01:43.9]} 31. Kf2 {[%clk 0:00:30.9]} 31... Kg6 {[%clk 0:01:44.7]}
32. g3 {[%clk 0:00:21.3]} 32... fxg3+ {[%clk 0:01:36.8]} 33. Kxg3 {[%clk
0:00:21.2]} 33... Kf5 {[%clk 0:01:38]} 34. Rb5 {[%clk 0:00:18.5]} 34... b6
{[%clk 0:01:28.4]} 35. Kf2 {[%clk 0:00:17.2]} 35... Rxe5 {[%clk 0:01:28.6]} 36.
Rb3 {[%clk 0:00:16]} 36... Kf4 {[%clk 0:01:28.4]} 37. Rc3 {[%clk 0:00:12.1]}
37... Rc5 {[%clk 0:01:25.9]} 38. Rxc5 {[%clk 0:00:04.7]} 38... bxc5 {[%clk
0:01:26.9]} 39. Ke2 {[%clk 0:00:04.1]} 39... e3 {[%clk 0:01:22.6]} 40. b3 {[%clk
0:00:03.2]} 40... Ke4 {[%clk 0:01:20.6]} 41. h4 {[%clk 0:00:03.4]} 41... h5
{[%clk 0:01:20.4]} 0-1

[Event "*** Titled Tuesday Blitz"]
[Site "Chess.com"]
[Date "2019.12.03"]
[Round "3"]
[White "Aleksandr_Kozak"]
[Black "nurgyulsalimova"]
[Result "0-1"]
[WhiteElo "2275"]
[BlackElo "2537"]
[TimeControl "180+2"]
[EndTime "13:37:15 PST"]
[Termination "nurgyulsalimova won by checkmate"]

1. e4 {[%clk 0:03:01.9]} 1... e5 {[%clk 0:02:58.6]} 2. Nf3 {[%clk 0:03:01.9]}
2... Nc6 {[%clk 0:02:59.7]} 3. Bb5 {[%clk 0:03:02.6]} 3... a6 {[%clk 0:02:59.8]}
4. Bxc6 {[%clk 0:03:03.1]} 4... dxc6 {[%clk 0:03:00.1]} 5. O-O {[%clk
0:03:04.7]} 5... f6 {[%clk 0:02:54.6]} 6. d4 {[%clk 0:03:04.9]} 6... exd4 {[%clk
0:02:54]} 7. Nxd4 {[%clk 0:03:03.9]} 7... Bd6 {[%clk 0:02:52.3]} 8. Nc3 {[%clk
0:02:54.5]} 8... Ne7 {[%clk 0:02:52.3]} 9. Be3 {[%clk 0:02:52.9]} 9... O-O
{[%clk 0:02:49.3]} 10. f4 {[%clk 0:02:53.1]} 10... c5 {[%clk 0:02:42.4]} 11. Nb3
{[%clk 0:02:52]} 11... b6 {[%clk 0:02:43.3]} 12. Qe2 {[%clk 0:02:39.5]} 12...
Bb7 {[%clk 0:02:43.7]} 13. Rad1 {[%clk 0:02:39.3]} 13... Qe8 {[%clk 0:02:42.7]}
14. a4 {[%clk 0:02:24]} 14... a5 {[%clk 0:02:38.3]} 15. Nb5 {[%clk 0:02:18.5]}
15... Bxe4 {[%clk 0:02:38.2]} 16. Qc4+ {[%clk 0:02:03.7]} 16... Nd5 {[%clk
0:02:27.8]} 17. Rxd5 {[%clk 0:02:00.4]} 17... Bxd5 {[%clk 0:02:29.2]} 18. Qxd5+
{[%clk 0:02:00.5]} 18... Kh8 {[%clk 0:02:30.7]} 19. Bd2 {[%clk 0:01:54.5]} 19...
Rd8 {[%clk 0:02:25.2]} 20. Qf3 {[%clk 0:01:49.7]} 20... c4 {[%clk 0:02:23.4]}
21. N3d4 {[%clk 0:01:29.9]} 21... Bc5 {[%clk 0:02:24.2]} 22. c3 {[%clk
0:01:28.4]} 22... c6 {[%clk 0:02:24.5]} 23. Na3 {[%clk 0:01:26.7]} 23... Bxd4+
{[%clk 0:02:25.6]} 24. cxd4 {[%clk 0:01:27.7]} 24... Rxd4 {[%clk 0:02:27.5]} 25.
Bc3 {[%clk 0:01:27.6]} 25... Rd3 {[%clk 0:02:27.9]} 26. Qf2 {[%clk 0:01:28.6]}
26... b5 {[%clk 0:02:27.3]} 27. axb5 {[%clk 0:01:24.8]} 27... cxb5 {[%clk
0:02:28.3]} 28. Bxa5 {[%clk 0:01:25.5]} 28... Qh5 {[%clk 0:02:08.7]} 29. Bb4
{[%clk 0:01:08.3]} 29... Re8 {[%clk 0:02:05.5]} 30. Qc5 {[%clk 0:00:57.7]} 30...
Qxc5+ {[%clk 0:02:00]} 31. Bxc5 {[%clk 0:00:57.8]} 31... Re2 {[%clk 0:01:59.7]}
32. Nxb5 {[%clk 0:00:48.7]} 32... Rxb2 {[%clk 0:01:58.6]} 33. Nd4 {[%clk
0:00:45.6]} 33... Rdd2 {[%clk 0:01:53.1]} 34. Nf3 {[%clk 0:00:33.4]} 34... Rxg2+
{[%clk 0:01:53.8]} 35. Kh1 {[%clk 0:00:35.1]} 35... c3 {[%clk 0:01:51.9]} 36.
Bd4 {[%clk 0:00:35.4]} 36... Rgc2 {[%clk 0:01:51.6]} 37. Ra1 {[%clk 0:00:21.5]}
37... h5 {[%clk 0:01:48.5]} 38. f5 {[%clk 0:00:16.4]} 38... Kh7 {[%clk
0:01:45.3]} 39. Ne1 {[%clk 0:00:12.7]} 39... Rxh2+ {[%clk 0:01:43.9]} 40. Kg1
{[%clk 0:00:14.1]} 40... Rh4 {[%clk 0:01:39.6]} 41. Bxc3 {[%clk 0:00:14.6]}
41... Rg4+ {[%clk 0:01:40]} 42. Kh1 {[%clk 0:00:12]} 42... Rb3 {[%clk
0:01:40.9]} 43. Bd2 {[%clk 0:00:10.3]} 43... Rh3# {[%clk 0:01:39.5]} 0-1

[Event "*** Titled Tuesday Blitz"]
[Site "Chess.com"]
[Date "2019.12.03"]
[Round "3"]
[White "SirMittensofMittensville"]
[Black "Laico"]
[Result "0-1"]
[WhiteElo "2623"]
[BlackElo "2326"]
[TimeControl "180+2"]
[EndTime "13:37:15 PST"]
[Termination "Laico won by resignation"]

1. e4 {[%clk 0:03:01.9]} 1... e6 {[%clk 0:03:01]} 2. d4 {[%clk 0:03:02.2]} 2...
d5 {[%clk 0:03:01.1]} 3. Nd2 {[%clk 0:03:03.5]} 3... Nf6 {[%clk 0:03:01]} 4. e5
{[%clk 0:03:03.7]} 4... Nfd7 {[%clk 0:03:01.7]} 5. Bd3 {[%clk 0:03:04]} 5... c5
{[%clk 0:03:03.1]} 6. c3 {[%clk 0:03:05.8]} 6... Nc6 {[%clk 0:03:04.7]} 7. Ne2
{[%clk 0:03:07.4]} 7... cxd4 {[%clk 0:03:06.6]} 8. cxd4 {[%clk 0:03:07.8]} 8...
f6 {[%clk 0:03:08.2]} 9. exf6 {[%clk 0:03:06.4]} 9... Nxf6 {[%clk 0:03:10.1]}
10. Nf3 {[%clk 0:03:06.9]} 10... Bd6 {[%clk 0:03:11.5]} 11. O-O {[%clk
0:03:08.3]} 11... Qc7 {[%clk 0:03:12.5]} 12. Nc3 {[%clk 0:03:06.8]} 12... a6
{[%clk 0:03:11.5]} 13. Bg5 {[%clk 0:03:08]} 13... O-O {[%clk 0:03:12.1]} 14. Bh4
{[%clk 0:03:08.5]} 14... Nh5 {[%clk 0:02:53.8]} 15. Bg3 {[%clk 0:03:08.8]} 15...
Nxg3 {[%clk 0:02:51.5]} 16. hxg3 {[%clk 0:03:10.7]} 16... g6 {[%clk 0:02:49.7]}
17. Rc1 {[%clk 0:03:05.7]} 17... Qg7 {[%clk 0:02:49.9]} 18. Bb1 {[%clk
0:03:01.7]} 18... Bc7 {[%clk 0:02:46.7]} 19. Na4 {[%clk 0:02:54.7]} 19... Bd7
{[%clk 0:02:08.5]} 20. Nc5 {[%clk 0:02:46.7]} 20... Bb6 {[%clk 0:02:08.9]} 21.
Re1 {[%clk 0:02:19.6]} 21... Rac8 {[%clk 0:02:05.3]} 22. Nxe6 {[%clk 0:01:11.5]}
22... Bxe6 {[%clk 0:02:07.2]} 23. Rxe6 {[%clk 0:01:13]} 23... Nxd4 {[%clk
0:02:08.3]} 24. Rxc8 {[%clk 0:01:12.9]} 24... Rxc8 {[%clk 0:02:09.3]} 25. Rxb6
{[%clk 0:01:02.1]} 25... Rc1 {[%clk 0:02:08.9]} 26. Qxc1 {[%clk 0:00:52.9]}
26... Ne2+ {[%clk 0:02:10.1]} 27. Kf1 {[%clk 0:00:45.5]} 27... Nxc1 {[%clk
0:02:11.1]} 28. Ne1 {[%clk 0:00:20.2]} 28... Qc7 {[%clk 0:02:06.9]} 29. Re6
{[%clk 0:00:19.4]} 29... Qc4+ {[%clk 0:02:02.9]} 30. Kg1 {[%clk 0:00:20.5]}
30... Ne2+ {[%clk 0:02:02.1]} 31. Kh2 {[%clk 0:00:21.8]} 31... Nd4 {[%clk
0:01:57.8]} 32. Re3 {[%clk 0:00:17.5]} 32... Qc1 {[%clk 0:01:49.5]} 33. Nd3
{[%clk 0:00:08.7]} 33... Qxb1 {[%clk 0:01:46.4]} 34. Nf4 {[%clk 0:00:10.6]}
34... Qxa2 {[%clk 0:01:40.6]} 35. Re7 {[%clk 0:00:09.5]} 35... Qxb2 {[%clk
0:01:37.9]} 36. Nxd5 {[%clk 0:00:07.8]} 36... Qxf2 {[%clk 0:01:34.1]} 37. Re8+
{[%clk 0:00:04]} 37... Kf7 {[%clk 0:01:30.6]} 38. Re7+ {[%clk 0:00:04.6]} 38...
Kg8 {[%clk 0:01:27.2]} 39. Re8+ {[%clk 0:00:04.9]} 39... Kg7 {[%clk 0:01:28]}
40. Re7+ {[%clk 0:00:06]} 40... Kh6 {[%clk 0:01:28.6]} 41. Kh1 {[%clk
0:00:04.9]} 41... Ne2 {[%clk 0:01:20.7]} 42. Kh2 {[%clk 0:00:04.3]} 0-1

[Event "*** Titled Tuesday Blitz"]
[Site "Chess.com"]
[Date "2019.12.03"]
[Round "3"]
[White "Elyon2000"]
[Black "vovachesss"]
[Result "1-0"]
[WhiteElo "2359"]
[BlackElo "2570"]
[TimeControl "180+2"]
[EndTime "13:37:16 PST"]
[Termination "Elyon2000 won by resignation"]

1. d4 {[%clk 0:03:01.9]} 1... Nf6 {[%clk 0:03:00.1]} 2. c4 {[%clk 0:03:03.5]}
2... c5 {[%clk 0:03:00.1]} 3. d5 {[%clk 0:03:04.1]} 3... g6 {[%clk 0:03:00.2]}
4. Nc3 {[%clk 0:03:05.1]} 4... Bg7 {[%clk 0:03:01.7]} 5. e4 {[%clk 0:03:06.7]}
5... d6 {[%clk 0:03:03.2]} 6. h3 {[%clk 0:03:07.6]} 6... O-O {[%clk 0:03:04.8]}
7. Nf3 {[%clk 0:03:09.2]} 7... e5 {[%clk 0:03:05.5]} 8. g4 {[%clk 0:03:04.6]}
8... a6 {[%clk 0:03:01]} 9. Bg5 {[%clk 0:03:03]} 9... Qc7 {[%clk 0:02:57.8]} 10.
Be2 {[%clk 0:03:02.5]} 10... Nbd7 {[%clk 0:02:55.2]} 11. Nd2 {[%clk 0:02:56.1]}
11... Rb8 {[%clk 0:02:52.1]} 12. a4 {[%clk 0:02:56.7]} 12... h6 {[%clk
0:02:45.1]} 13. Be3 {[%clk 0:02:57.4]} 13... Nh7 {[%clk 0:02:40.7]} 14. h4
{[%clk 0:02:54.9]} 14... f5 {[%clk 0:02:36.9]} 15. gxf5 {[%clk 0:02:55.7]} 15...
gxf5 {[%clk 0:02:37.9]} 16. exf5 {[%clk 0:02:56.9]} 16... Rxf5 {[%clk
0:02:33.3]} 17. Bd3 {[%clk 0:02:56.2]} 17... Rf7 {[%clk 0:02:31.4]} 18. Nde4
{[%clk 0:02:52.2]} 18... Ndf8 {[%clk 0:02:30.3]} 19. Rg1 {[%clk 0:02:52.7]}
19... Kh8 {[%clk 0:02:29.8]} 20. Qh5 {[%clk 0:02:51.6]} 20... Rf5 {[%clk
0:02:24.7]} 21. Qe2 {[%clk 0:02:46.2]} 21... Qf7 {[%clk 0:02:14.4]} 22. Nxd6
{[%clk 0:02:45.8]} 22... Qf6 {[%clk 0:02:06.8]} 23. Nxf5 {[%clk 0:02:45.7]}
23... Bxf5 {[%clk 0:02:07]} 24. Bxf5 {[%clk 0:02:46.6]} 24... Qxf5 {[%clk
0:02:08.9]} 25. Qg4 {[%clk 0:02:46.6]} 25... Qf7 {[%clk 0:02:06.9]} 26. Ne4
{[%clk 0:02:47.2]} 26... Nd7 {[%clk 0:02:03.8]} 27. Qe6 {[%clk 0:02:42.8]} 27...
Qxe6 {[%clk 0:01:22]} 28. dxe6 {[%clk 0:02:44.7]} 28... Ndf6 {[%clk 0:01:23]}
29. Nxc5 {[%clk 0:02:32.2]} 29... Re8 {[%clk 0:01:14.5]} 30. Nxb7 {[%clk
0:02:25.4]} 30... Rxe6 {[%clk 0:01:14.3]} 31. Rd1 {[%clk 0:02:26.3]} 31... Nf8
{[%clk 0:01:02.6]} 32. c5 {[%clk 0:02:27.7]} 32... Kh7 {[%clk 0:01:03.2]} 33. b4
{[%clk 0:02:27.3]} 33... Re7 {[%clk 0:00:58.3]} 34. c6 {[%clk 0:02:28.2]} 34...
Ne6 {[%clk 0:00:59.7]} 35. b5 {[%clk 0:02:28.4]} 35... axb5 {[%clk 0:01:00.6]}
36. axb5 {[%clk 0:02:30.3]} 36... Nd4 {[%clk 0:01:01.6]} 37. Bxd4 {[%clk
0:02:06.6]} 37... exd4+ {[%clk 0:01:01.3]} 38. Kf1 {[%clk 0:02:08.5]} 38... Nd5
{[%clk 0:00:58.7]} 39. Nd6 {[%clk 0:02:07.4]} 39... Bf6 {[%clk 0:00:53.4]} 40.
Nf5 {[%clk 0:02:07.2]} 40... Re5 {[%clk 0:00:53.9]} 41. Nxd4 {[%clk 0:02:05.5]}
41... Re4 {[%clk 0:00:55.2]} 42. Nf5 {[%clk 0:01:59.7]} 42... Re5 {[%clk
0:00:56.2]} 43. Rxd5 {[%clk 0:01:43.1]} 43... Rxd5 {[%clk 0:00:56.9]} 44. c7
{[%clk 0:01:45]} 44... Rc5 {[%clk 0:00:58.2]} 45. b6 {[%clk 0:01:46.5]} 45...
Be5 {[%clk 0:00:59.6]} 46. Ke2 {[%clk 0:01:32]} 46... h5 {[%clk 0:00:56.3]} 47.
Kd3 {[%clk 0:01:27]} 47... Bxc7 {[%clk 0:00:56.1]} 48. Rg7+ {[%clk 0:01:27.8]}
48... Kh8 {[%clk 0:00:57.6]} 49. Rxc7 {[%clk 0:01:25.9]} 49... Rb5 {[%clk
0:00:54.5]} 50. b7 {[%clk 0:01:27.1]} 50... Rb3+ {[%clk 0:00:49.9]} 51. Kc4
{[%clk 0:01:27.3]} 51... Rxb7 {[%clk 0:00:50.5]} 52. Rxb7 {[%clk 0:01:29]} 1-0

[Event "*** Titled Tuesday Blitz"]
[Site "Chess.com"]
[Date "2019.12.03"]
[Round "3"]
[White "PNEPaul"]
[Black "Saitama_Hero"]
[Result "0-1"]
[WhiteElo "1708"]
[BlackElo "2330"]
[TimeControl "180+2"]
[EndTime "13:37:16 PST"]
[Termination "Saitama_Hero won by resignation"]

1. e4 {[%clk 0:03:01.9]} 1... e5 {[%clk 0:02:57.5]} 2. Nf3 {[%clk 0:03:01.7]}
2... Nc6 {[%clk 0:02:59.1]} 3. Bc4 {[%clk 0:03:02.4]} 3... Nf6 {[%clk
0:02:58.2]} 4. Ng5 {[%clk 0:03:00.7]} 4... d5 {[%clk 0:02:58]} 5. exd5 {[%clk
0:03:01.5]} 5... Na5 {[%clk 0:02:59.4]} 6. d3 {[%clk 0:03:02.5]} 6... Nxc4
{[%clk 0:02:53]} 7. dxc4 {[%clk 0:03:02]} 7... Bc5 {[%clk 0:02:31.2]} 8. Nc3
{[%clk 0:02:28.8]} 8... Bg4 {[%clk 0:02:24.5]} 9. f3 {[%clk 0:02:20.8]} 9... Bd7
{[%clk 0:02:05.6]} 10. Qe2 {[%clk 0:02:09.8]} 10... O-O {[%clk 0:01:40.6]} 11.
Nge4 {[%clk 0:02:04.1]} 11... Nxe4 {[%clk 0:01:33.9]} 12. Nxe4 {[%clk
0:02:04.8]} 12... Be7 {[%clk 0:01:07.9]} 13. Bd2 {[%clk 0:02:01.8]} 13... f5
{[%clk 0:01:06.7]} 14. Nc3 {[%clk 0:02:01]} 14... Bf6 {[%clk 0:00:59.8]} 15.
O-O-O {[%clk 0:01:59.9]} 15... c6 {[%clk 0:00:59]} 16. g4 {[%clk 0:01:43.7]}
16... e4 {[%clk 0:00:53.7]} 17. fxe4 {[%clk 0:01:39.1]} 17... fxg4 {[%clk
0:00:53.3]} 18. e5 {[%clk 0:01:31.8]} 18... Re8 {[%clk 0:00:54.6]} 19. e6 {[%clk
0:01:32.3]} 19... cxd5 {[%clk 0:00:52.1]} 20. cxd5 {[%clk 0:01:32.3]} 20... Qb6
{[%clk 0:00:47.5]} 21. Qxg4 {[%clk 0:01:27.7]} 21... Bb5 {[%clk 0:00:47.2]} 22.
Rhg1 {[%clk 0:00:52.1]} 22... Rac8 {[%clk 0:00:45.9]} 23. h4 {[%clk 0:00:50.5]}
23... Bc4 {[%clk 0:00:35.8]} 24. b3 {[%clk 0:00:30.9]} 24... Bxb3 {[%clk
0:00:31.1]} 25. axb3 {[%clk 0:00:29]} 25... Qa5 {[%clk 0:00:22]} 26. Nb1 {[%clk
0:00:23]} 26... Qa2 {[%clk 0:00:20.5]} 27. Bc3 {[%clk 0:00:21]} 27... Rxc3
{[%clk 0:00:21.7]} 28. Nxc3 {[%clk 0:00:21.3]} 28... Bxc3 {[%clk 0:00:20.5]} 29.
Qxg7+ {[%clk 0:00:13.4]} 29... Bxg7 {[%clk 0:00:19.4]} 30. Rxg7+ {[%clk
0:00:14]} 30... Kxg7 {[%clk 0:00:21.3]} 31. Rg1+ {[%clk 0:00:14.8]} 31... Kf8
{[%clk 0:00:19.1]} 0-1

[Event "*** Titled Tuesday Blitz"]
[Site "Chess.com"]
[Date "2019.12.03"]
[Round "3"]
[White "BvsN"]
[Black "julinha97"]
[Result "1-0"]
[WhiteElo "2382"]
[BlackElo "2194"]
[TimeControl "180+2"]
[EndTime "13:37:17 PST"]
[Termination "BvsN won by resignation"]

1. d4 {[%clk 0:03:01.9]} 1... Nf6 {[%clk 0:01:47.8]} 2. c4 {[%clk 0:03:01.9]}
2... g6 {[%clk 0:01:49.3]} 3. Nc3 {[%clk 0:03:03.1]} 3... Bg7 {[%clk 0:01:50.4]}
4. e4 {[%clk 0:03:04.4]} 4... d6 {[%clk 0:01:52]} 5. Nge2 {[%clk 0:03:05.8]}
5... O-O {[%clk 0:01:53.7]} 6. f3 {[%clk 0:03:07]} 6... c5 {[%clk 0:01:54.2]} 7.
d5 {[%clk 0:03:07.8]} 7... e6 {[%clk 0:01:53.9]} 8. Ng3 {[%clk 0:03:09]} 8...
exd5 {[%clk 0:01:55]} 9. cxd5 {[%clk 0:03:10.9]} 9... a6 {[%clk 0:01:55.9]} 10.
a4 {[%clk 0:03:12.2]} 10... Nbd7 {[%clk 0:01:55.7]} 11. Be2 {[%clk 0:03:13.5]}
11... Rb8 {[%clk 0:01:55]} 12. O-O {[%clk 0:03:13.5]} 12... h5 {[%clk
0:01:54.7]} 13. Bg5 {[%clk 0:03:14]} 13... Qc7 {[%clk 0:01:53.2]} 14. Qd2 {[%clk
0:03:15]} 14... Re8 {[%clk 0:01:52.7]} 15. Rac1 {[%clk 0:03:14]} 15... Nh7
{[%clk 0:01:51.6]} 16. Bh6 {[%clk 0:03:11]} 16... Bh8 {[%clk 0:01:50.3]} 17. Nh1
{[%clk 0:03:10.2]} 17... c4 {[%clk 0:01:35]} 18. Be3 {[%clk 0:03:06.6]} 18... b5
{[%clk 0:01:34.2]} 19. axb5 {[%clk 0:03:06.2]} 19... axb5 {[%clk 0:01:36.1]} 20.
b4 {[%clk 0:03:07.4]} 20... Qd8 {[%clk 0:01:04.7]} 21. Nf2 {[%clk 0:03:07]}
21... Qe7 {[%clk 0:01:05.1]} 22. Bd4 {[%clk 0:03:04.5]} 22... Bxd4 {[%clk
0:01:02.9]} 23. Qxd4 {[%clk 0:03:05.7]} 23... Qe5 {[%clk 0:01:02]} 24. Qd2
{[%clk 0:03:03.9]} 24... g5 {[%clk 0:00:59.4]} 25. Ra1 {[%clk 0:02:38]} 25...
Ndf6 {[%clk 0:00:53.5]} 26. Ra7 {[%clk 0:02:33.2]} 26... Nf8 {[%clk 0:00:42.6]}
27. Rfa1 {[%clk 0:02:32.8]} 27... Ng6 {[%clk 0:00:42.5]} 28. Bf1 {[%clk
0:02:29.2]} 28... g4 {[%clk 0:00:30.9]} 29. fxg4 {[%clk 0:02:03.4]} 29... hxg4
{[%clk 0:00:25.5]} 30. Re1 {[%clk 0:01:35.4]} 30... g3 {[%clk 0:00:22.1]} 31.
hxg3 {[%clk 0:01:35.8]} 31... Qxg3 {[%clk 0:00:24]} 32. Re3 {[%clk 0:01:31.5]}
32... Qg5 {[%clk 0:00:25.2]} 33. Qe1 {[%clk 0:01:24.6]} 33... Ne5 {[%clk
0:00:22.3]} 34. Nh3 {[%clk 0:01:20.7]} 34... Bxh3 {[%clk 0:00:22.7]} 35. Rxh3
{[%clk 0:01:17]} 35... Nh5 {[%clk 0:00:16.8]} 36. Qf2 {[%clk 0:01:09.7]} 36...
Qg6 {[%clk 0:00:09.4]} 37. Be2 {[%clk 0:01:06.4]} 37... Nf4 {[%clk 0:00:08.3]}
38. Qxf4 {[%clk 0:01:02.4]} 1-0

[Event "*** Titled Tuesday Blitz"]
[Site "Chess.com"]
[Date "2019.12.03"]
[Round "3"]
[White "Bulldog167"]
[Black "Tiqr777"]
[Result "1-0"]
[WhiteElo "2906"]
[BlackElo "2634"]
[TimeControl "180+2"]
[EndTime "13:37:27 PST"]
[Termination "Bulldog167 won by resignation"]

1. d4 {[%clk 0:03:01.9]} 1... Nf6 {[%clk 0:03:00.8]} 2. c4 {[%clk 0:03:03.5]}
2... c5 {[%clk 0:03:02]} 3. d5 {[%clk 0:03:04.7]} 3... e6 {[%clk 0:03:03.4]} 4.
Nc3 {[%clk 0:03:05.4]} 4... exd5 {[%clk 0:03:04.9]} 5. cxd5 {[%clk 0:03:07.3]}
5... d6 {[%clk 0:03:05.9]} 6. e4 {[%clk 0:03:08.8]} 6... g6 {[%clk 0:03:07.2]}
7. Nf3 {[%clk 0:03:10.1]} 7... Bg7 {[%clk 0:03:08.4]} 8. Bg5 {[%clk 0:03:11.6]}
8... a6 {[%clk 0:03:09.2]} 9. Nd2 {[%clk 0:03:10.3]} 9... O-O {[%clk 0:03:06.3]}
10. Qc2 {[%clk 0:03:09.7]} 10... b5 {[%clk 0:03:06.5]} 11. a4 {[%clk 0:03:10.3]}
11... b4 {[%clk 0:03:07.2]} 12. Nd1 {[%clk 0:03:11.8]} 12... Nbd7 {[%clk
0:03:07.2]} 13. Be2 {[%clk 0:03:12.5]} 13... a5 {[%clk 0:03:06.1]} 14. Ne3
{[%clk 0:03:12.2]} 14... Re8 {[%clk 0:03:02.8]} 15. O-O {[%clk 0:03:12.8]} 15...
Qe7 {[%clk 0:02:57.2]} 16. Rae1 {[%clk 0:02:56.9]} 16... Nb6 {[%clk 0:02:53.7]}
17. Bb5 {[%clk 0:02:56.4]} 17... Bd7 {[%clk 0:02:53.1]} 18. Bxd7 {[%clk
0:02:56.7]} 18... Qxd7 {[%clk 0:02:54.5]} 19. b3 {[%clk 0:02:56.1]} 19... Ng4
{[%clk 0:02:39.5]} 20. Nec4 {[%clk 0:02:40.2]} 20... Nxc4 {[%clk 0:02:40.3]} 21.
Nxc4 {[%clk 0:02:41.9]} 21... Qc7 {[%clk 0:02:41.2]} 22. h3 {[%clk 0:02:26.2]}
22... Ne5 {[%clk 0:02:41.1]} 23. f4 {[%clk 0:02:15.8]} 23... Nxc4 {[%clk
0:02:40.3]} 24. Qxc4 {[%clk 0:02:17.7]} 24... Qb7 {[%clk 0:02:28.2]} 25. f5
{[%clk 0:01:25]} 25... Be5 {[%clk 0:02:11.9]} 26. Bf4 {[%clk 0:01:13.7]} 26...
Qa6 {[%clk 0:02:09.7]} 27. Qc1 {[%clk 0:01:11.4]} 27... Qd3 {[%clk 0:01:56.4]}
28. Bxe5 {[%clk 0:00:41.7]} 28... Rxe5 {[%clk 0:01:57.3]} 29. Qh6 {[%clk
0:00:35.3]} 29... gxf5 {[%clk 0:00:49.4]} 30. Qg5+ {[%clk 0:00:36.1]} 30... Kh8
{[%clk 0:00:45.6]} 31. Qf6+ {[%clk 0:00:35.4]} 31... Kg8 {[%clk 0:00:45.2]} 32.
Rf3 {[%clk 0:00:30.1]} 32... Qd4+ {[%clk 0:00:43]} 33. Kh1 {[%clk 0:00:31.1]}
33... Rxe4 {[%clk 0:00:15.1]} 34. Rg3+ {[%clk 0:00:29.8]} 34... Kf8 {[%clk
0:00:16.4]} 35. Qxd6+ {[%clk 0:00:30.4]} 1-0